fUSD/lending_fUSD_20260622
["ID","MTS","AMOUNT","RATE_DAILY","PERIOD"]
[426005768,1782108642000,-2011.0,0.00023782,2]
[426005769,1782108642000,-4652.08269695,0.00023813,2]
[426005782,1782108642000,-10000.0,0.00024,2]
[426005762,1782108642000,-151.0,0.0002372,2]
[426005770,1782108642000,-202.36001253,0.0002383,2]
[426005791,1782108642000,-180.0,0.00024,2]
[426005773,1782108642000,-202.36001253,0.00023885,2]
[426005774,1782108642000,-785.0,0.0002393,2]
[426005776,1782108642000,-200.0,0.0002397,2]
[426005775,1782108642000,-202.36001253,0.0002394,2]
[426005778,1782108642000,-202.36001253,0.00023995,2]
[426005780,1782108642000,-11203.09467203,0.00024,2]
[426005779,1782108642000,-1261.27451767,0.00024,2]
[426005777,1782108642000,-160.48624564,0.0002399,2]
[426005787,1782108642000,-169.92135483,0.00024,2]
[426005789,1782108642000,-543.0,0.00024,2]
[426005785,1782108642000,-22600.0,0.00024,2]
[426005796,1782108642000,-358.19769023,0.00024048,2]
[426005758,1782108642000,-202.36001253,0.00023665,2]
[426005772,1782108642000,-1907.47993691,0.00023833,2]
[426005757,1782108642000,-151.0,0.0002361,2]
[426005728,1782108642000,-151.0,0.000235,2]
[426005752,1782108642000,-202.36001253,0.00023555,2]
[426005731,1782108642000,-151.0,0.000235,2]
[426005790,1782108642000,-227.0,0.00024,2]
[426005730,1782108642000,-151.0,0.000235,2]
[426005729,1782108642000,-500.0,0.000235,2]
[426005744,1782108642000,-500.0,0.000235,2]
[426005741,1782108642000,-500.0,0.000235,2]
[426005743,1782108642000,-151.0,0.000235,2]
[426005732,1782108642000,-151.0,0.000235,2]
[426005737,1782108642000,-151.0,0.000235,2]
[426005742,1782108642000,-151.0,0.000235,2]
[426005733,1782108642000,-500.0,0.000235,2]
[426005738,1782108642000,-500.0,0.000235,2]
[426005739,1782108642000,-151.0,0.000235,2]
[426005760,1782108642000,-151.65,0.00023668,2]
[426005740,1782108642000,-151.0,0.000235,2]
[426005735,1782108642000,-500.0,0.000235,2]
[426005736,1782108642000,-151.0,0.000235,2]
[426005745,1782108642000,-151.0,0.000235,2]
[426005756,1782108642000,-202.36001253,0.0002361,2]
[426005746,1782108642000,-269.6725767,0.000235,2]
[426005748,1782108642000,-151.0,0.000235,2]
[426005747,1782108642000,-500.0,0.000235,2]
[426005751,1782108642000,-500.0,0.000235,2]
[426005755,1782108642000,-785.0,0.00023598,2]
[426005753,1782108642000,-151.0,0.00023555,2]
[426005749,1782108642000,-151.0,0.000235,2]
[426005750,1782108642000,-500.0,0.000235,2]
[426005754,1782108642000,-226.97211214,0.00023561,7]
[426005734,1782108642000,-151.0,0.000235,2]
[426005798,1782108642000,-181.08010149,0.00024048,2]
[426005795,1782108642000,-763.0,0.00024,2]
[426005793,1782108642000,-183.0,0.00024,2]
[426005839,1782108642000,-152.85415714,0.00024596,2]
[426005831,1782108642000,-50000.0,0.000245,7]
[426005828,1782108642000,-644.33,0.00024492,2]
[426005833,1782108642000,-25117.91,0.000245,5]
[426005832,1782108642000,-50000.0,0.000245,7]
[426005835,1782108642000,-785.0,0.00024595,2]
[426005834,1782108642000,-461.73306027,0.00024544,7]
[426005836,1782108642000,-358.19769023,0.00024596,2]
[426005837,1782108642000,-187.78006524,0.00024596,2]
[426005838,1782108642000,-200.0,0.00024596,2]
[426005841,1782108642000,-490.60788746,0.00024596,2]
[426005840,1782108642000,-217.15233878,0.00024596,2]
[426005842,1782108642000,-151.0,0.00024596,2]
[426005851,1782108642000,-1000.0,0.00024658,2]
[426005852,1782108642000,-151.0,0.00024658,2]
[426005848,1782108642000,-150.0,0.00024633,7]
[426005844,1782108642000,-1169.77,0.00024615,2]
[426005847,1782108642000,-150.0,0.00024633,7]
[426005845,1782108642000,-150.0,0.00024633,7]
[426005849,1782108642000,-150.0,0.00024633,7]
[426005846,1782108642000,-150.0,0.00024633,7]
[426005850,1782108642000,-150.0,0.00024633,7]
[426005854,1782108642000,-406.4,0.00024658,2]
[426005853,1782108642000,-158.843375,0.00024658,2]
[426005858,1782108642000,-150.0,0.00024711,7]
[426005855,1782108642000,-151.0,0.00024658,2]
[426005856,1782108642000,-461.73306027,0.0002469,7]
[426005799,1782108642000,-152.71659717,0.00024048,2]
[426005857,1782108642000,-152.0,0.00024709,5]
[426005830,1782108642000,-500.0,0.00024499,2]
[426005829,1782108642000,-500.0,0.00024499,2]
[426005843,1782108642000,-174.32,0.00024597,2]
[426005827,1782108642000,-475.0,0.00024458,2]
[426005797,1782108642000,-157.5709291,0.00024048,2]
[426005821,1782108642000,-150.0,0.00024333,2]
[426005792,1782108642000,-282.675462,0.00024,2]
[426005794,1782108642000,-563.0,0.00024,2]
[426005811,1782108642000,-3774.65181799,0.0002421,2]
[426005801,1782108642000,-151.0,0.00024048,2]
[426005812,1782108642000,-461.73306027,0.00024252,2]
[426005813,1782108642000,-153.91102008,0.00024252,2]
[426005800,1782108642000,-200.0,0.00024048,2]
[426005803,1782108642000,-490.60788746,0.00024048,2]
[426005804,1782108642000,-151.0,0.00024048,2]
[426005805,1782108642000,-202.36001253,0.0002405,2]
[426005806,1782108642000,-5742.26945574,0.00024087,2]
[426005810,1782108642000,-267.9,0.00024137,2]
[426005802,1782108642000,-209.40437684,0.00024048,2]
[426005809,1782108642000,-1169.77,0.0002411,2]
[426005825,1782108642000,-461.73306027,0.00024398,2]
[426005808,1782108642000,-202.36001263,0.00024105,2]
[426005820,1782108642000,-264.8,0.00024324,2]
[426005819,1782108642000,-151.0,0.00024322,2]
[426005817,1782108642000,-202.36502403,0.00024278,2]
[426005824,1782108642000,-161.02,0.00024396,2]
[426005822,1782108642000,-225.706938,0.00024339,14]
[426005823,1782108642000,-703.16896752,0.00024354,2]
[426005816,1782108642000,-309.4600961,0.00024278,2]
[426005818,1782108642000,-184.11,0.00024302,2]
[426005814,1782108642000,-785.0,0.00024262,2]
[426005815,1782108642000,-500.0,0.00024278,2]
[426005826,1782108642000,-4652.08269695,0.00024439,2]
[426005900,1782108643000,-150.0,0.00025102,7]
[426005892,1782108643000,-578.78142548,0.00025,2]
[426005902,1782108643000,-461.73306027,0.00025127,14]
[426005897,1782108643000,-1360.0,0.00025034,2]
[426005896,1782108643000,-383.0,0.00025034,2]
[426005904,1782108643000,-194.72792766,0.00025144,2]
[426005901,1782108643000,-1169.77,0.00025121,2]
[426005891,1782108643000,-188.46045026,0.00025,2]
[426005895,1782108643000,-150.0,0.00025024,7]
[426005894,1782108643000,-167.16,0.00025,2]
[426005903,1782108643000,-358.19769023,0.00025144,2]
[426005893,1782108643000,-765.16439674,0.00025,2]
[426005898,1782108643000,-4652.08269695,0.00025066,2]
[426005919,1782108643000,-396.29,0.00025312,2]
[426005906,1782108643000,-225.18697532,0.00025144,2]
[426005917,1782108643000,-644.33,0.00025312,2]
[426005905,1782108643000,-200.0,0.00025144,2]
[426005916,1782108643000,-644.33,0.00025312,2]
[426005909,1782108643000,-163.2662498,0.0002518,2]
[426005907,1782108643000,-490.60788746,0.00025144,2]
[426005908,1782108643000,-163.2662498,0.0002518,2]
[426005910,1782108643000,-150.0,0.0002518,7]
[426005913,1782108643000,-785.0,0.00025259,2]
[426005915,1782108643000,-153.91102008,0.00025273,14]
[426005911,1782108643000,-150.0,0.00025241,7]
[426005912,1782108643000,-150.0,0.00025258,7]
[426005914,1782108643000,-461.73306027,0.00025273,14]
[426005882,1782108643000,-630.48088768,0.00025,5]
[426005899,1782108643000,-150.0,0.00025089,7]
[426005884,1782108643000,-10000.0,0.00025,2]
[426005864,1782108643000,-150.0,0.00024789,7]
[426005886,1782108643000,-60294.26158838,0.00025,7]
[426005918,1782108643000,-482.43,0.00025312,2]
[426005865,1782108643000,-700.0,0.000248,9]
[426005863,1782108643000,-5742.26945574,0.00024783,2]
[426005859,1782108643000,-200.0,0.00024722,2]
[426005861,1782108643000,-202.97787231,0.00024765,2]
[426005862,1782108643000,-204.5,0.00024779,2]
[426005860,1782108643000,-205.287075,0.00024765,2]
[426005866,1782108643000,-1907.47993691,0.000248,2]
[426005868,1782108643000,-2011.0,0.00024825,2]
[426005871,1782108643000,-150.0,0.00024867,7]
[426005874,1782108643000,-785.0,0.00024927,2]
[426005872,1782108643000,-1400.0,0.000249,9]
[426005869,1782108643000,-461.73306027,0.00024835,7]
[426005883,1782108643000,-307.433605,0.00025,2]
[426005878,1782108643000,-8691.0,0.00024979,3]
[426005875,1782108643000,-150.0,0.00024937,7]
[426005870,1782108643000,-150.0,0.00024861,7]
[426005867,1782108643000,-2673.0,0.00024825,2]
[426005873,1782108643000,-169.19343421,0.00024927,2]
[426005877,1782108643000,-150.0,0.00024975,7]
[426005880,1782108643000,-174.70464427,0.00024999,2]
[426005890,1782108643000,-193.68400559,0.00025,2]
[426005889,1782108643000,-243.81474819,0.00025,2]
[426005879,1782108643000,-461.73306027,0.00024981,7]
[426005881,1782108643000,-174.70464427,0.00024999,2]
[426005885,1782108643000,-1500.0,0.00025,2]
[426005887,1782108643000,-10013.84923631,0.00025,5]
[426005888,1782108643000,-560.06802208,0.00025,2]
[426005876,1782108643000,-150.0,0.00024946,7]
[426005920,1782108643000,-500.0,0.00025312,2]
[426005967,1782108643000,-210.56836787,0.00025365,2]
[426005931,1782108643000,-150.0,0.00025337,7]
[426005951,1782108643000,-157.00807854,0.00025363,2]
[426005957,1782108643000,-154.39169809,0.00025363,2]
[426005962,1782108643000,-225.76395349,0.00025365,2]
[426005964,1782108643000,-198.28210476,0.00025365,2]
[426005963,1782108643000,-168.25402321,0.00025365,2]
[426005966,1782108643000,-224.51725154,0.00025365,2]
[426005965,1782108643000,-164.20959463,0.00025365,2]
[426005958,1782108643000,-172.23759403,0.00025365,2]
[426005959,1782108643000,-231.4416795,0.00025365,2]
[426005960,1782108643000,-170.54184351,0.00025365,2]
[426005968,1782108643000,-180.72698077,0.00025365,2]
[426005970,1782108643000,-214.65791568,0.00025365,2]
[426005982,1782108643000,-200.0,0.00025475,2]
[426005974,1782108643000,-176.63346216,0.00025365,2]
[426005978,1782108643000,-184.51424214,0.0002538,18]
[426005979,1782108643000,-150.0,0.00025415,7]
[426005976,1782108643000,-180.65412192,0.00025365,2]
[426005980,1782108643000,-206.0,0.00025416,2]
[426005981,1782108643000,-461.73306027,0.00025419,14]
[426005973,1782108643000,-200.00339904,0.00025365,2]
[426005975,1782108643000,-185.58526239,0.00025365,2]
[426005977,1782108643000,-190.82373722,0.00025365,2]
[426005983,1782108643000,-500.0,0.00025479,2]
[426005985,1782108643000,-5742.26945574,0.0002548,2]
[426005987,1782108643000,-500.0,0.00025499,2]
[426005986,1782108643000,-150.0,0.00025493,7]
[426005984,1782108643000,-69208.0,0.00025479,2]
[426005954,1782108643000,-165.42254321,0.00025363,2]
[426005956,1782108643000,-183.22193274,0.00025363,2]
[426005961,1782108643000,-219.80029736,0.00025365,2]
[426005952,1782108643000,-202.88675833,0.00025363,2]
[426005930,1782108643000,-150.0,0.00025317,7]
[426005921,1782108643000,-185.21,0.00025313,2]
[426005922,1782108643000,-396.28,0.00025313,2]
[426005953,1782108643000,-197.19798621,0.00025363,2]
[426005928,1782108643000,-185.21,0.00025313,2]
[426005929,1782108643000,-150.0,0.00025317,7]
[426005924,1782108643000,-574.16,0.00025313,2]
[426005925,1782108643000,-396.28,0.00025313,2]
[426005926,1782108643000,-644.33,0.00025313,2]
[426005943,1782108643000,-195.69954738,0.00025363,2]
[426005933,1782108643000,-199.46356476,0.00025363,2]
[426005944,1782108643000,-201.44915421,0.00025363,2]
[426005932,1782108643000,-285.682151,0.00025338,2]
[426005936,1782108643000,-186.22259622,0.00025363,2]
[426005923,1782108643000,-482.43,0.00025313,2]
[426005939,1782108643000,-150.85368051,0.00025363,2]
[426005934,1782108643000,-173.57559987,0.00025363,2]
[426005948,1782108643000,-164.59365981,0.00025363,2]
[426005950,1782108643000,-166.15476429,0.00025363,2]
[426005947,1782108643000,-180.71206471,0.00025363,2]
[426005955,1782108643000,-202.10289449,0.00025363,2]
[426005945,1782108643000,-205.67067118,0.00025363,2]
[426005949,1782108643000,-208.19536667,0.00025363,2]
[426005927,1782108643000,-482.37,0.00025313,2]
[426005942,1782108643000,-152.8910879,0.00025363,2]
[426005935,1782108643000,-162.46794338,0.00025363,2]
[426005941,1782108643000,-191.74124933,0.00025363,2]
[426005938,1782108643000,-209.14680243,0.00025363,2]
[426005946,1782108643000,-198.66587687,0.00025363,2]
[426005940,1782108643000,-151.4684631,0.00025363,2]
[426005989,1782108644000,-46237.65494428,0.000255,7]
[426005988,1782108644000,-50000.0,0.000255,5]
[426005990,1782108644000,-3762.34505572,0.000255,7]
[426005991,1782108644000,-38948.98042098,0.000255,5]
[426005994,1782108644000,-381.51320214,0.000255,7]
[426005993,1782108644000,-14559.47742597,0.000255,7]
[426005995,1782108644000,-200.0,0.00020987,2]
[426005998,1782108644000,-320.0,0.00015024,2]
[426005999,1782108644000,-363.9229129,0.000255,7]
[426005997,1782108644000,-75.4371976,0.000255,7]
[426006000,1782108644000,-473.42,0.00024595,10]
[426005992,1782108644000,-11051.01957902,0.000255,5]
[426005996,1782108644000,-151.0,0.00025,2]
[426006003,1782108645000,-25327.99304672,0.000255,7]
[426006002,1782108645000,-373.0,0.0002,2]
[426006001,1782108645000,-150.0,0.00014141,2]
[426006007,1782108649000,-629.50507353,0.000255,7]
[426006006,1782108649000,-2514.35314818,0.000255,7]
[426006008,1782108697000,269.0,0.00030136,120]
[426006009,1782108719000,212.006597,0.0002,120]
[426006010,1782108726000,206.898026,0.00025603,120]
[426006011,1782108757000,207.225023,0.0002499,120]
[426006012,1782108762000,261.424124,0.0002499,120]
[426006014,1782109027000,155.471504,0.0002,120]
[426006015,1782109027000,155.471504,0.00025,120]
[426006016,1782109335000,279.848708,0.0002,120]
[426006017,1782109370000,161.99,0.00030136,120]
[426006019,1782109613000,-25.30589001,0.00013396,2]
[426006018,1782109613000,-166.66,0.0001312,2]
[426006029,1782109831000,-141.35410999,0.00013396,2]
[426006028,1782109831000,-244.47172175,0.00013396,2]
[426006032,1782109831000,-536.95,0.00013655,2]
[426006034,1782109831000,-1275.26087,0.0001372,2]
[426006031,1782109831000,-176.12,0.00013655,2]
[426006033,1782109831000,-166.66,0.00013672,2]
[426006030,1782109831000,-150.0,0.00013525,2]
[426006038,1782109831000,-200.0,0.0001381,2]
[426006036,1782109831000,-151.0,0.00013789,2]
[426006035,1782109831000,-150.0,0.00013789,2]
[426006041,1782109831000,-150.0,0.00013859,2]
[426006040,1782109831000,-151.0,0.00013859,2]
[426006039,1782109831000,-151.0,0.00013859,2]
[426006037,1782109831000,-151.0,0.00013789,2]
[426006092,1782109832000,-311.0,0.00014141,2]
[426006099,1782109832000,-315.0,0.00014141,2]
[426006081,1782109832000,-515.90384209,0.00014141,2]
[426006084,1782109832000,-500.0,0.00014141,2]
[426006083,1782109832000,-500.0,0.00014141,2]
[426006080,1782109832000,-151.87853082,0.00014141,7]
[426006085,1782109832000,-500.0,0.00014141,2]
[426006082,1782109832000,-500.0,0.00014141,2]
[426006076,1782109832000,-318.0,0.0001407,2]
[426006078,1782109832000,-153.0,0.0001407,2]
[426006090,1782109832000,-314.0,0.00014141,2]
[426006086,1782109832000,-500.0,0.00014141,2]
[426006089,1782109832000,-313.0,0.00014141,2]
[426006111,1782109832000,-320.0,0.00014141,2]
[426006097,1782109832000,-315.0,0.00014141,2]
[426006091,1782109832000,-151.0,0.00014141,2]
[426006094,1782109832000,-310.0,0.00014141,2]
[426006095,1782109832000,-151.0,0.00014141,2]
[426006093,1782109832000,-318.0,0.00014141,2]
[426006096,1782109832000,-313.0,0.00014141,2]
[426006098,1782109832000,-153.0,0.00014141,2]
[426006101,1782109832000,-151.0,0.00014141,2]
[426006079,1782109832000,-434.81,0.00014105,2]
[426006102,1782109832000,-318.0,0.00014141,2]
[426006100,1782109832000,-309.0,0.00014141,2]
[426006103,1782109832000,-320.0,0.00014141,2]
[426006104,1782109832000,-318.0,0.00014141,2]
[426006107,1782109832000,-311.0,0.00014141,2]
[426006088,1782109832000,-151.0,0.00014141,2]
[426006087,1782109832000,-310.0,0.00014141,2]
[426006064,1782109832000,-151.0,0.0001407,2]
[426006073,1782109832000,-314.0,0.0001407,2]
[426006106,1782109832000,-309.0,0.00014141,2]
[426006043,1782109832000,-151.0,0.00013859,2]
[426006042,1782109832000,-151.0,0.00013859,2]
[426006044,1782109832000,-150.0,0.00013859,2]
[426006046,1782109832000,-184.12,0.00013872,2]
[426006048,1782109832000,-152.0,0.00013929,2]
[426006052,1782109832000,-166.66,0.00013948,2]
[426006050,1782109832000,-151.0,0.00013929,2]
[426006049,1782109832000,-151.0,0.00013929,2]
[426006045,1782109832000,-152.0,0.00013859,2]
[426006051,1782109832000,-152.0,0.00013929,2]
[426006057,1782109832000,-250.0,0.00014,2]
[426006047,1782109832000,-152.0,0.00013929,2]
[426006056,1782109832000,-153.0,0.00013999,2]
[426006053,1782109832000,-151.0,0.00013999,2]
[426006055,1782109832000,-153.0,0.00013999,2]
[426006054,1782109832000,-150.0,0.00013999,2]
[426006060,1782109832000,-310.0,0.0001407,2]
[426006058,1782109832000,-150.0,0.00014069,2]
[426006062,1782109832000,-319.0,0.0001407,2]
[426006063,1782109832000,-316.0,0.0001407,2]
[426006066,1782109832000,-311.0,0.0001407,2]
[426006061,1782109832000,-150.0,0.0001407,2]
[426006065,1782109832000,-309.0,0.0001407,2]
[426006069,1782109832000,-152.0,0.0001407,2]
[426006074,1782109832000,-151.0,0.0001407,2]
[426006068,1782109832000,-313.0,0.0001407,2]
[426006075,1782109832000,-313.0,0.0001407,2]
[426006071,1782109832000,-309.0,0.0001407,2]
[426006077,1782109832000,-316.0,0.0001407,2]
[426006105,1782109832000,-150.0,0.00014141,2]
[426006150,1782109832000,-318.0,0.00014938,2]
[426006109,1782109832000,-312.0,0.00014141,2]
[426006141,1782109832000,-150.0,0.00014862,2]
[426006146,1782109832000,-317.0,0.00014862,2]
[426006152,1782109832000,-315.0,0.00014938,2]
[426006148,1782109832000,-314.0,0.00014938,2]
[426006171,1782109832000,-150.0,0.00015013,2]
[426006145,1782109832000,-319.0,0.00014862,2]
[426006151,1782109832000,-151.0,0.00014938,2]
[426006149,1782109832000,-315.0,0.00014938,2]
[426006147,1782109832000,-153.0,0.00014938,2]
[426006164,1782109832000,-152.0,0.00014938,2]
[426006154,1782109832000,-150.0,0.00014938,2]
[426006156,1782109832000,-311.0,0.00014938,2]
[426006153,1782109832000,-315.0,0.00014938,2]
[426006142,1782109832000,-321.0,0.00014862,2]
[426006158,1782109832000,-150.0,0.00014938,2]
[426006155,1782109832000,-317.0,0.00014938,2]
[426006157,1782109832000,-315.0,0.00014938,2]
[426006159,1782109832000,-321.0,0.00014938,2]
[426006160,1782109832000,-313.0,0.00014938,2]
[426006161,1782109832000,-151.0,0.00014938,2]
[426006163,1782109832000,-312.0,0.00014938,2]
[426006165,1782109832000,-317.0,0.00014938,2]
[426006166,1782109832000,-160.0,0.00014955,2]
[426006167,1782109832000,-500.0,0.00014999,2]
[426006168,1782109832000,-500.0,0.00014999,2]
[426006170,1782109832000,-311.0,0.00015013,2]
[426006172,1782109832000,-161.03,0.0001508,2]
[426006108,1782109832000,-150.0,0.00014141,2]
[426006162,1782109832000,-316.0,0.00014938,2]
[426006144,1782109832000,-150.0,0.00014862,2]
[426006169,1782109832000,-200.0,0.00015,2]
[426006140,1782109832000,-311.0,0.00014862,2]
[426006143,1782109832000,-312.0,0.00014862,2]
[426006112,1782109832000,-151.0,0.00014141,2]
[426006114,1782109832000,-314.0,0.00014141,2]
[426006116,1782109832000,-312.0,0.00014141,2]
[426006110,1782109832000,-309.0,0.00014141,2]
[426006117,1782109832000,-321.0,0.00014141,2]
[426006119,1782109832000,-151.0,0.00014141,2]
[426006115,1782109832000,-151.0,0.00014141,2]
[426006125,1782109832000,-204.07029485,0.00014431,2]
[426006123,1782109832000,-166.66,0.00014224,2]
[426006124,1782109832000,-500.0,0.00014241,2]
[426006120,1782109832000,-316.0,0.00014141,2]
[426006113,1782109832000,-320.0,0.00014141,2]
[426006122,1782109832000,-963.17,0.00014176,2]
[426006121,1782109832000,-500.0,0.00014141,2]
[426006127,1782109832000,-166.66,0.000145,2]
[426006134,1782109832000,-150.0,0.00014862,2]
[426006136,1782109832000,-311.0,0.00014862,2]
[426006131,1782109832000,-151.0,0.00014788,2]
[426006133,1782109832000,-315.0,0.00014862,2]
[426006118,1782109832000,-318.0,0.00014141,2]
[426006132,1782109832000,-318.0,0.00014862,2]
[426006130,1782109832000,-310.0,0.00014788,2]
[426006135,1782109832000,-318.0,0.00014862,2]
[426006138,1782109832000,-313.0,0.00014862,2]
[426006126,1782109832000,-250.0,0.00014431,2]
[426006128,1782109832000,-213.97,0.00014641,2]
[426006139,1782109832000,-318.0,0.00014862,2]
[426006137,1782109832000,-150.0,0.00014862,2]
[426006129,1782109832000,-229.05634178,0.00014735,2]
[426006181,1782109833000,-399.10331512,0.00015151,2]
[426006174,1782109833000,-318.0,0.00015143,2]
[426006173,1782109833000,-314.0,0.00015143,2]
[426006175,1782109833000,-500.0,0.00015151,2]
[426006176,1782109833000,-500.0,0.00015151,2]
[426006178,1782109833000,-500.0,0.00015151,2]
[426006180,1782109833000,-500.0,0.00015151,2]
[426006177,1782109833000,-382.80603963,0.00015151,2]
[426006185,1782109833000,-1254.41808677,0.00015252,2]
[426006186,1782109833000,-424.63898139,0.00015252,2]
[426006183,1782109833000,-2437.74243503,0.00015202,2]
[426006179,1782109833000,-411.26424445,0.00015151,2]
[426006184,1782109833000,-1510.35903881,0.00015252,2]
[426006187,1782109833000,-1246.48,0.00015252,2]
[426006188,1782109833000,-528.20860877,0.00015252,2]
[426006182,1782109833000,-9374.4181,0.00015152,2]
[426006200,1782109838000,-524.05771191,0.00015252,2]
[426006201,1782109838000,-978.70596519,0.00015252,2]
[426006205,1782109838000,-718.29858037,0.00015252,2]
[426006206,1782109838000,-360.90989524,0.00015252,2]
[426006204,1782109838000,-374.68915625,0.00015252,2]
[426006207,1782109839000,-722.8034753,0.00015252,2]
[426006208,1782109839000,-150.95150348,0.00015252,2]
[426006233,1782109840000,-606.14344881,0.00016438,2]
[426006229,1782109840000,-9999.99,0.00016116,2]
[426006228,1782109840000,-9999.99,0.00016116,2]
[426006226,1782109840000,-5066.39,0.00016116,2]
[426006230,1782109840000,-9999.99,0.00016116,2]
[426006231,1782109840000,-198.6,0.00016438,2]
[426006244,1782109840000,-151.0,0.00017084,2]
[426006234,1782109840000,-168.98,0.00016712,2]
[426006232,1782109840000,-500.0,0.00016438,2]
[426006236,1782109840000,-500.0,0.00017004,2]
[426006237,1782109840000,-1500.0,0.00017045,2]
[426006243,1782109840000,-1360.0,0.00017084,2]
[426006227,1782109840000,-6230.08,0.00016116,2]
[426006235,1782109840000,-279.8509739,0.00016904,2]
[426006222,1782109840000,-8462.56605441,0.00016016,2]
[426006218,1782109840000,-3535.23,0.00015599,2]
[426006225,1782109840000,-1563.85,0.00016116,2]
[426006219,1782109840000,-150.68106,0.00015735,7]
[426006221,1782109840000,-300.0,0.00016,2]
[426006214,1782109840000,-150.99,0.0001531,2]
[426006224,1782109840000,-9999.99,0.00016116,2]
[426006220,1782109840000,-434.81,0.00015869,2]
[426006217,1782109840000,-200.0,0.00015534,2]
[426006216,1782109840000,-637.38252702,0.00015444,2]
[426006215,1782109840000,-293.48689321,0.00015351,2]
[426006213,1782109840000,-299.99,0.0001531,2]
[426006212,1782109840000,-7829.92074713,0.0001531,2]
[426006210,1782109840000,-2349.04849652,0.00015252,2]
[426006211,1782109840000,-233.71925287,0.0001531,2]
[426006242,1782109840000,-383.0,0.00017084,2]
[426006223,1782109840000,-371.31,0.00016116,2]
[426006239,1782109840000,-256.76793637,0.00017071,2]
[426006251,1782109840000,-1555.5,0.00017593,2]
[426006241,1782109840000,-1276.0,0.00017084,2]
[426006267,1782109840000,-162.0,0.0002,2]
[426006264,1782109840000,-241.0,0.0002,2]
[426006273,1782109840000,-355.0,0.0002,2]
[426006262,1782109840000,-8462.56605441,0.00019868,2]
[426006263,1782109840000,-563.0,0.0002,2]
[426006266,1782109840000,-186.565806,0.0002,2]
[426006265,1782109840000,-400.0,0.0002,2]
[426006272,1782109840000,-159.0,0.0002,2]
[426006268,1782109840000,-164.0,0.0002,2]
[426006274,1782109840000,-156.0,0.0002,2]
[426006271,1782109840000,-159.08835039,0.0002,2]
[426006276,1782109840000,-1276.0,0.00020084,2]
[426006275,1782109840000,-156.0,0.0002,2]
[426006246,1782109840000,-314.0,0.00017084,2]
[426006269,1782109840000,-507.0,0.0002,2]
[426006257,1782109840000,-198.6,0.0001841,2]
[426006270,1782109840000,-686.0,0.0002,2]
[426006255,1782109840000,-309.0,0.0001832,2]
[426006256,1782109840000,-312.0,0.0001832,2]
[426006240,1782109840000,-500.0,0.00017083,2]
[426006247,1782109840000,-313.0,0.00017084,2]
[426006259,1782109840000,-8462.56605441,0.00018584,2]
[426006248,1782109840000,-318.0,0.00017084,2]
[426006249,1782109840000,-8462.56605441,0.000173,2]
[426006245,1782109840000,-150.0,0.00017084,2]
[426006261,1782109840000,-163.48231582,0.0001947,2]
[426006254,1782109840000,-888.91154442,0.00018141,2]
[426006260,1782109840000,-434.81,0.00019395,2]
[426006253,1782109840000,-350.0,0.00018,2]
[426006238,1782109840000,-151.0,0.00017071,2]
[426006252,1782109840000,-434.81,0.00017632,2]